fUSD/lending_fUSD_20241123
["ID","MTS","AMOUNT","RATE_DAILY","PERIOD"]
[343165376,1732391443003,-150.0,0.00055737,14]
[343165377,1732391443012,-150.0,0.00055738,14]
[343165378,1732391443023,-150.0,0.00055744,14]
[343165379,1732391443032,-150.0,0.00055754,14]
[343165380,1732391443042,-150.0,0.00055761,14]
[343165381,1732391443052,-150.0,0.00055766,14]
[343165382,1732391443062,-161.68,0.00055768,120]
[343165383,1732391443072,-150.0,0.00055769,14]
[343165384,1732391443081,-150.0,0.00055769,14]
[343165385,1732391443091,-150.0,0.00055769,14]
[343165386,1732391443101,-150.0,0.0005577,14]
[343165387,1732391443110,-150.0,0.00055775,14]
[343165388,1732391443121,-150.0,0.0005578,14]
[343165389,1732391443131,-150.0,0.00055782,14]
[343165390,1732391443140,-150.0,0.00055782,14]
[343165391,1732391443150,-150.0,0.00055784,14]
[343165392,1732391443159,-422.84605013,0.00055784,120]
[343165393,1732391443168,-150.0,0.00055787,14]
[343165394,1732391443177,-150.0,0.00055787,14]
[343165395,1732391443186,-150.0,0.0005579,14]
[343165396,1732391443199,-150.0,0.00055793,14]
[343165397,1732391443209,-150.0,0.00055795,14]
[343165398,1732391443219,-1116.0,0.000558,20]
[343165399,1732391443228,-150.0,0.00055803,14]
[343165400,1732391443238,-150.0,0.00055805,14]
[343165401,1732391443248,-150.0,0.00055807,14]
[343165402,1732391443258,-150.0,0.00055807,14]
[343165403,1732391443268,-150.0,0.00055811,14]
[343165404,1732391443429,-150.0,0.00055815,14]
[343165405,1732391443439,-150.0,0.00055816,14]
[343165406,1732391443454,-1084.0,0.00055817,25]
[343165407,1732391443463,-150.0,0.00055823,14]
[343165408,1732391443473,-150.0,0.00055833,14]
[343165409,1732391443482,-150.0,0.00055839,14]
[343165410,1732391443491,-150.0,0.00055842,120]
[343165411,1732391443501,-150.0,0.00055842,14]
[343165412,1732391443511,-150.0,0.00055846,14]
[343165413,1732391443520,-150.0,0.0005585,14]
[343165414,1732391443530,-150.0,0.00055864,14]
[343165415,1732391443539,-150.0,0.00055877,14]
[343165416,1732391443548,-150.0,0.0005588,14]
[343165417,1732391443557,-165.96632871,0.0005588,34]
[343165418,1732391443566,-150.0,0.00055881,14]
[343165419,1732391443575,-1500.0,0.00055881,30]
[343165420,1732391443585,-150.0,0.00055885,14]
[343165421,1732391443594,-150.0,0.00055887,14]
[343165422,1732391443604,-1599.55647232,0.00055889,2]
[343165423,1732391443614,-1599.55647231,0.0005589,2]
[343165424,1732391443623,-170.06948319,0.0005589,62]
[343165425,1732391443633,-511.3184581,0.0005589,2]
[343165426,1732391443642,-447.98179442,0.0005589,120]
[343165427,1732391443651,-212.57586153,0.0005589,15]
[343165428,1732391443661,-28093.51343418,0.0005589,2]
[343165429,1732391443671,-1599.55647231,0.0005589,2]
[343165430,1732391443680,-320.95742492,0.0005589,2]
[343165431,1732391443690,-981.49246679,0.0005589,2]
[343165432,1732391443702,-150.0,0.00055891,14]
[343165433,1732391443712,-150.0,0.00055894,14]
[343165434,1732391443726,-150.0,0.00055894,14]
[343165435,1732391443736,-150.0,0.00055894,14]
[343165436,1732391443747,-5000.0,0.000559,120]
[343165437,1732391443756,-486.0,0.000559,3]
[343165438,1732391443767,-19087.25172284,0.000559,120]
[343165439,1732391443776,-150.0,0.000559,120]
[343165440,1732391443786,-4000.0,0.000559,120]
[343165441,1732391443796,-934.1936,0.000559,120]
[343165442,1732391443806,-150.0,0.000559,14]
[343165443,1732391443815,-150.0,0.00055901,14]
[343165444,1732391443824,-150.0,0.00055902,14]
[343165445,1732391443834,-150.0,0.00055911,14]
[343165446,1732391443843,-150.0,0.00055912,14]
[343165447,1732391443852,-150.0,0.00055913,14]
[343165448,1732391443861,-1500.0,0.00055916,30]
[343165449,1732391443871,-150.0,0.00055922,14]
[343165450,1732391443880,-150.0,0.00055925,14]
[343165451,1732391443889,-150.0,0.00055928,14]
[343165452,1732391443899,-150.0,0.00055932,14]
[343165453,1732391443909,-150.0,0.00055934,14]
[343165454,1732391443918,-1500.0,0.00055941,30]
[343165455,1732391443927,-150.0,0.00055943,14]
[343165456,1732391443937,-150.0,0.00055946,14]
[343165457,1732391443948,-150.0,0.00055951,14]
[343165458,1732391443958,-150.0,0.00055954,14]
[343165459,1732391443967,-150.0,0.0005596,14]
[343165460,1732391443977,-150.0,0.00055964,14]
[343165461,1732391443986,-150.0,0.00055969,14]
[343165462,1732391443996,-1500.0,0.00055969,30]
[343165463,1732391444006,-151.71,0.0005597,120]
[343165464,1732391444015,-151.71,0.0005597,120]
[343165465,1732391444026,-213.45747164,0.0005597,7]
[343165466,1732391444035,-150.0,0.00055973,120]
[343165467,1732391444045,-150.0,0.00055974,14]
[343165468,1732391444055,-150.0,0.00055976,14]
[343165469,1732391444064,-2051993.12931907,0.00055976,120]
[343165470,1732391444074,-400.0,0.00055979,120]
[343165471,1732391444083,-400.0,0.00055979,120]
[343165472,1732391444093,-500.0,0.00055979,120]
[343165473,1732391444103,-500.0,0.00055979,120]
[343165474,1732391444112,-1447.55,0.00055979,120]
[343165475,1732391444122,-1447.55,0.00055979,120]
[343165476,1732391444131,-1447.55,0.00055979,120]
[343165477,1732391444141,-1447.55,0.00055979,120]
[343165478,1732391444150,-1447.55,0.00055979,120]
[343165479,1732391444160,-1447.55,0.00055979,120]
[343165480,1732391444169,-1447.55,0.00055979,120]
[343165481,1732391444179,-1447.55,0.00055979,120]
[343165482,1732391444188,-1447.55,0.00055979,120]
[343165483,1732391444199,-1447.55,0.00055979,120]
[343165484,1732391444208,-1447.55,0.00055979,120]
[343165485,1732391444218,-1447.55,0.00055979,120]
[343165486,1732391444227,-1447.55,0.00055979,120]
[343165487,1732391444237,-400.25,0.00055979,120]
[343165488,1732391444246,-300.21,0.0005598,120]
[343165489,1732391444256,-1288590.54031537,0.0005598,120]
[343165490,1732391444617,-500.0,0.00045706,2]
[343165491,1732391444627,-852.195051,0.0005,64]
[343165492,1732391444637,-500.0,0.00051,64]
[343165493,1732391444646,-764.99,0.00055041,60]
[343165494,1732391444655,-278.40359049,0.00055089,15]
[343165495,1732391444664,-51.12427194,0.0005598,120]
[343165496,1732391444739,-1123.80672971,0.0005598,120]
[343165497,1732391444822,-5853.22976173,0.0005598,120]
[343165537,1732391445910,-587.7555,0.0004868,2]
[343165538,1732391445920,-250.1753262,0.0005598,120]
[343165542,1732391446550,-478.99887351,0.0005598,120]
[343165543,1732391446563,-2588.97599935,0.0005598,120]
[343165544,1732391615372,500.0,0.00024932,2]
[343165545,1732391875682,300.0,0.00032197,6]
[343165546,1732391875704,800.0,0.00032197,6]
[343165547,1732391875725,800.0,0.00032197,6]
[343165548,1732391875746,800.0,0.00032197,6]
[343165549,1732391875767,800.0,0.00032197,6]
[343165550,1732391875789,800.0,0.00032197,6]
[343165551,1732391875809,800.0,0.00032197,6]
[343165552,1732391875851,3400.0,0.00032197,6]
[343165553,1732391943324,800.0,0.00026986,120]
[343165554,1732392000423,1000.0,0.000373,15]
[343165556,1732392109490,9189.1145152,0.0003,2]
[343165557,1732392109513,9959.02632063,0.0003,2]
[343165558,1732392185208,800.0,0.00026986,120]
[343165559,1732392220981,500.0,0.00024932,2]
[343165560,1732392239650,255.0,0.00038,2]
[343165563,1732392306105,800.0,0.00026986,120]
[343165625,1732392637988,-161.5,0.00038985,2]
[343165626,1732392637998,-236.0,0.000392,2]
[343165627,1732392638008,-150.17,0.00041096,2]
[343165628,1732392638017,-500.0,0.00042,120]
[343165629,1732392638027,-723.19409978,0.000428,120]
[343165630,1732392638036,-614.61409225,0.000447,7]
[343165631,1732392638048,-185.38590775,0.000447,7]
[343165632,1732392638058,-550.0,0.00044999,5]
[343165633,1732392638067,-500.0,0.00045,2]
[343165634,1732392638077,-357.03867092,0.00045,2]
[343165635,1732392638090,-142.96132908,0.00045,2]
[343165636,1732392638102,-180.83789049,0.00045,2]
[343165637,1732392638117,-319.16210951,0.00045,2]
[343165638,1732392638127,-500.0,0.00045,2]
[343165639,1732392638136,-105.28104444,0.00045,2]
[343165649,1732392639812,-794.71895556,0.00045,2]
[343165650,1732392639822,-673.45461144,0.00045,2]
[343165656,1732392642898,-1169.04,0.00045,2]
[343165657,1732392643006,-514.9577498,0.00045,2]
[343165658,1732392643017,-8795.3967754,0.00045,2]
[343165659,1732392643028,-11847.15086236,0.00045,2]
[343165660,1732392643038,-805.27,0.00045494,2]
[343165661,1732392643047,-150.0,0.0004674,2]
[343165662,1732392643057,-150.59,0.00047569,2]
[343165663,1732392643067,-2342.83,0.000476,7]
[343165664,1732392643076,-2342.83,0.000476,7]
[343165665,1732392643086,-2342.83,0.000476,7]
[343165666,1732392643098,-160.0,0.00047749,5]
[343165667,1732392643107,-805.27,0.00047758,2]
[343165668,1732392643117,-8610.46286379,0.000478,2]
[343165669,1732392643135,-1468.67911361,0.000478,2]
[343165670,1732392643176,-5742.6056059,0.000478,2]
[343165671,1732392643191,-7627.17494324,0.000478,2]
[343165689,1732392645943,-1648.79474065,0.000478,2]
[343165690,1732392646052,-378.29600003,0.000478,2]
[343165691,1732392646151,-163.18801064,0.000478,2]
[343165692,1732392646164,-431.14,0.000478,2]
[343165693,1732392646179,-1203.14557125,0.000478,2]
[343165698,1732392773525,250.0,0.00031,2]
[343165699,1732392774603,300.0,0.00033,2]
[343165700,1732392775689,250.0,0.00035,2]
[343165701,1732392775711,100.0,0.00035,2]
[343165702,1732392827893,500.0,0.00024932,2]
[343165704,1732393336297,200.0,0.0003,2]
[343165705,1732393336322,800.0,0.0003,2]
[343165706,1732393336343,799.999999,0.0003,2]
[343165707,1732393512490,1e-06,0.00025,2]
[343165708,1732393512516,149.999999,0.00025,2]
[343165709,1732393567151,1040.2489977,0.0003,120]
[343165712,1732393592495,2900.0,0.000225,15]
[343165713,1732393618677,1544.46451879,0.00035,30]
[343165714,1732393638371,350.000001,0.00038,2]
[343165715,1732393638397,658.78820001,0.00038,2]
[343165716,1732393669723,726.444894,0.00026,30]
[343165717,1732393672170,540.0,0.00032,2]
[343165718,1732393676178,9638.38949558,0.00035,90]
[343165719,1732393681492,2606.04396024,0.000145,3]
[343165720,1732393685221,3881.14151912,0.000379,2]
[343165726,1732393717865,676.46415987,0.00027,120]
[343165727,1732393719542,680.95240747,0.00027,120]
[343165728,1732393720960,1064.3818798,0.00035,32]
[343165729,1732393721158,2763.12439293,0.0002,7]
[343165739,1732393725423,664.04785859,0.00027,120]
[343165740,1732393727430,700.0,0.00035,120]
[343165741,1732393727850,1950.18478826,0.00028,60]
[343165766,1732393803398,800.0,0.00026986,120]
[343165804,1732393832439,-4892.95,0.000379,2]
[343165805,1732393832475,-722.55001,0.000379,2]
[343165806,1732393832495,-1402.83986741,0.000379,2]
[343165807,1732393832511,-1956.94,0.000379,2]
[343166347,1732393838146,-1037.22836361,0.000379,2]
[343166409,1732393840007,-9400.30909585,0.000379,2]
[343166410,1732393840018,-998.9001,0.00038,2]
[343166411,1732393840028,-2326.11770273,0.00038,2]
[343166412,1732393840038,-1846.66545889,0.000385,120]
[343166413,1732393840048,-2226.33561851,0.0003888,90]
[343166414,1732393840061,-1234.0499854,0.000389,120]
[343166415,1732393840071,-150.0,0.00038999,4]
[343166416,1732393840081,-535.79001879,0.00039,2]
[343166417,1732393840090,-1384.67521282,0.00039,120]
[343166418,1732393840100,-576.65205073,0.000394,30]
[343166419,1732393840110,-6849.89,0.0003999,2]
[343166420,1732393840119,-1000.0,0.00039999,2]
[343166421,1732393840129,-3000.0,0.0004,40]
[343166422,1732393840138,-227.03772457,0.0004,2]
[343166423,1732393840146,-450.05826454,0.0004,30]
[343166424,1732393840155,-1504.54440513,0.0004,30]
[343166425,1732393840164,-346.66665896,0.0004,30]
[343166426,1732393840176,-1250.68812227,0.0004,30]
[343166427,1732393840187,-9840.84255098,0.0004,20]
[343166428,1732393840197,-374.60745665,0.0004,2]
[343166429,1732393840207,-1181.71020925,0.0004,120]
[343166430,1732393840217,-1300.47976162,0.0004,5]
[343166431,1732393840227,-209.95934202,0.0004,2]
[343166432,1732393840235,-677.07218266,0.0004,30]
[343166433,1732393840245,-2044.0913634,0.0004,120]
[343166434,1732393840254,-298.95,0.00041096,2]
[343166435,1732393840264,-161.72339328,0.00041096,2]
[343166436,1732393840273,-169.43,0.00041096,2]
[343166437,1732393840283,-250.0,0.00041162,2]
[343166438,1732393840292,-23900.0,0.00041508,2]
[343166439,1732393840305,-7442.659,0.000419,2]
[343166440,1732393840315,-690.54,0.0004199,30]
[343166441,1732393840324,-575.45,0.0004199,30]
[343166442,1732393840333,-479.54,0.0004199,30]
[343166443,1732393840344,-399.62,0.0004199,30]
[343166444,1732393840354,-566.84,0.0004199,10]
[343166445,1732393840364,-333.01,0.0004199,30]
[343166446,1732393840373,-277.51,0.0004199,30]
[343166447,1732393840384,-500.71747894,0.00041999,31]
[343166448,1732393840394,-500.0,0.00041999,31]
[343166449,1732393840404,-500.0,0.00041999,31]
[343166450,1732393840416,-575.22869188,0.00041999,31]
[343166451,1732393840427,-500.49200809,0.00041999,31]
[343166452,1732393840437,-500.38419212,0.00041999,31]
[343166453,1732393840448,-500.0,0.00041999,31]
[343166454,1732393840459,-687.05877201,0.00041999,31]
[343166455,1732393840469,-500.0,0.00041999,31]
[343166456,1732393840482,-500.0,0.00041999,31]
[343166457,1732393840492,-687.05877201,0.00041999,31]
[343166458,1732393840502,-500.0,0.00041999,31]
[343166459,1732393840512,-687.05877201,0.00041999,31]
[343166460,1732393840523,-500.0,0.00041999,31]
[343166461,1732393840532,-687.05877201,0.00041999,31]
[343166462,1732393840542,-500.0,0.00041999,31]
[343166463,1732393840556,-687.05877201,0.00041999,31]
[343166464,1732393840568,-500.0,0.00041999,31]
[343166465,1732393840577,-687.05877201,0.00041999,31]
[343166466,1732393840587,-500.0,0.00041999,31]
[343166467,1732393840597,-687.05877201,0.00041999,31]
[343166468,1732393840607,-500.0,0.00041999,31]
[343166469,1732393840616,-687.05877201,0.00041999,31]
[343166470,1732393840626,-687.05877201,0.00041999,31]
[343166471,1732393840636,-500.0,0.00041999,31]
[343166472,1732393840645,-500.0,0.00041999,31]
[343166473,1732393840655,-687.05877201,0.00041999,31]
[343166474,1732393840665,-500.0,0.00041999,31]
[343166475,1732393840674,-687.05877201,0.00041999,31]
[343166476,1732393840683,-687.05877201,0.00041999,31]
[343166477,1732393840692,-500.0,0.00041999,31]
[343166478,1732393840702,-687.05877201,0.00041999,31]
[343166479,1732393840711,-500.0,0.00041999,31]
[343166480,1732393840720,-687.05877201,0.00041999,31]
[343166481,1732393840729,-687.05877201,0.00041999,31]
[343166482,1732393840739,-500.0,0.00041999,31]
[343166483,1732393840748,-687.05877201,0.00041999,31]
[343166484,1732393840757,-500.0,0.00041999,31]
[343166485,1732393840767,-687.05877201,0.00041999,31]
[343166486,1732393840776,-500.0,0.00041999,31]
[343166487,1732393840786,-687.05877201,0.00041999,31]
[343166488,1732393840796,-687.05877201,0.00041999,31]
[343166489,1732393840810,-687.05877201,0.00041999,31]
[343166490,1732393840820,-500.0,0.00041999,31]
[343166491,1732393840830,-687.05877201,0.00041999,31]
[343166492,1732393840840,-500.0,0.00041999,31]
[343166493,1732393840850,-687.05877201,0.00041999,31]
[343166494,1732393840860,-500.0,0.00041999,31]
[343166495,1732393840869,-687.05877201,0.00041999,31]
[343166496,1732393840879,-500.0,0.00041999,31]
[343166497,1732393841056,-687.05877201,0.00041999,31]
[343166498,1732393841066,-687.05877201,0.00041999,31]
[343166499,1732393841076,-687.05877201,0.00041999,31]
[343166500,1732393841085,-687.05877201,0.00041999,31]
[343166501,1732393841095,-500.0,0.00041999,31]
[343166502,1732393841104,-687.05877201,0.00041999,31]
[343166503,1732393841113,-500.0,0.00041999,31]
[343166504,1732393841123,-687.05877201,0.00041999,31]
[343166505,1732393841132,-687.05877201,0.00041999,31]
[343166506,1732393841141,-500.0,0.00041999,31]
[343166507,1732393841151,-687.05877201,0.00041999,31]
[343166508,1732393841160,-687.05877201,0.00041999,31]
[343166509,1732393841169,-687.05877201,0.00041999,31]
[343166510,1732393841179,-687.05877201,0.00041999,31]
[343166511,1732393841188,-500.0,0.00041999,31]
[343166512,1732393841197,-687.05877201,0.00041999,31]
[343166513,1732393841207,-687.05877201,0.00041999,31]
[343166514,1732393841216,-687.05877201,0.00041999,31]
[343166515,1732393841225,-687.05877201,0.00041999,31]
[343166516,1732393841235,-354.98998439,0.00041999,31]
[343166517,1732393841244,-687.05877201,0.00041999,31]
[343166518,1732393841253,-687.05877201,0.00041999,31]
[343166519,1732393841263,-687.05877201,0.00041999,31]
[343166520,1732393841272,-687.05877201,0.00041999,31]
[343166521,1732393841282,-687.05877201,0.00041999,31]
[343166522,1732393841291,-687.05877201,0.00041999,31]
[343166523,1732393841300,-687.05877201,0.00041999,31]
[343166524,1732393841313,-687.05877201,0.00041999,31]
[343166525,1732393841322,-687.05877201,0.00041999,31]
[343166526,1732393841332,-687.05877201,0.00041999,31]
[343166527,1732393841341,-687.05877201,0.00041999,31]
[343166528,1732393841350,-687.05877201,0.00041999,31]
[343166529,1732393841359,-687.05877201,0.00041999,31]
[343166530,1732393841369,-687.05877201,0.00041999,31]
[343166531,1732393841378,-687.05877201,0.00041999,31]
[343166532,1732393841387,-687.05877201,0.00041999,31]
[343166533,1732393841397,-687.05877201,0.00041999,31]
[343166534,1732393841407,-687.05877201,0.00041999,31]
[343166535,1732393841416,-687.05877201,0.00041999,31]
[343166536,1732393841425,-500.0,0.00042,120]
[343166537,1732393841435,-179284.69581912,0.00042,30]
[343166538,1732393841445,-1674.43752308,0.000425,120]
[343166539,1732393841454,-16777.04669158,0.000428,60]
[343166540,1732393841464,-2462.61544,0.000428,15]
[343166541,1732393841474,-604.87715233,0.000429,120]
[343166542,1732393841483,-71574.69051893,0.00043,10]
[343166543,1732393841493,-363.76,0.00043,2]
[343166544,1732393841506,-8869.15,0.00043,30]
[343166545,1732393841515,-13880.59854122,0.00043,2]
[343166546,1732393841525,-1495.21641787,0.00043,30]
[343166547,1732393841534,-2462.61545,0.0004341,18]
[343166548,1732393841545,-159.71922837,0.000435,2]
[343166549,1732393841558,-198.35877751,0.00043562,120]
[343166550,1732393841567,-22902.54602465,0.000437,120]
[343166551,1732393841577,-21039.0,0.00044028,30]
[343166552,1732393841587,-2462.61545,0.0004466,24]
[343166553,1732393841596,-798.63,0.00044699,2]
[343166554,1732393841606,-166.75,0.00044724,2]
[343166555,1732393841616,-1099.32389214,0.000448,120]
[343166556,1732393841625,-500.0,0.00044998,120]
[343166557,1732393841634,-500.0,0.00044998,120]
[343166558,1732393841644,-500.0,0.00044998,120]
[343166559,1732393841653,-500.0,0.00044998,120]
[343166560,1732393841663,-281.08901362,0.00044998,120]
[343166561,1732393841672,-23697.7781227,0.00045,2]
[343166562,1732393841682,-2285.13190058,0.00045,14]
[343166563,1732393841691,-1315.8795722,0.00045,7]
[343166564,1732393841700,-1092.27128142,0.00045,7]
[343166565,1732393841709,-500.0,0.00045003,2]
[343166566,1732393841719,-150.0,0.00045439,2]
[343166567,1732393841728,-2190.47029614,0.000457,120]
[343166568,1732393841737,-2462.61545,0.0004591,30]
[343166569,1732393841747,-1000.0,0.00045999,2]
[343166570,1732393841756,-1000.0,0.00046,30]
[343166571,1732393841765,-3031.37197016,0.00046,30]
[343166572,1732393841775,-1317.94535772,0.00046,30]
[343166573,1732393841784,-298.95,0.00046143,2]
[343166574,1732393841793,-211.0,0.00046283,2]
[343166575,1732393841806,-7362.98,0.00046283,2]
[343166576,1732393841819,-150.5,0.0004643,2]
[343166577,1732393841829,-250.0,0.00046463,120]
[343166578,1732393841839,-184.42,0.00046481,2]
[343166579,1732393841849,-500.0,0.00046571,2]
[343166580,1732393841858,-200.0,0.00046646,2]
[343166581,1732393841867,-250.0,0.00046728,120]
[343166582,1732393841878,-150.0,0.0004679,2]
[343166583,1732393841887,-2883.65,0.00046826,2]
[343166584,1732393841898,-1000.0,0.00046834,2]
[343166585,1732393841907,-245.45,0.0004685,120]
[343166586,1732393841917,-188.86,0.00046866,2]
[343166587,1732393841926,-273.28,0.00046907,120]
[343166588,1732393841935,-798.63,0.00046963,2]
[343166589,1732393841945,-3026.76332656,0.00047,60]
[343166590,1732393841955,-200.0,0.00047027,2]
[343166591,1732393841964,-1827.222,0.00047083,79]
[343166592,1732393841973,-500.0,0.00047083,2]
[343166593,1732393841982,-177.295,0.00047083,79]
[343166594,1732393841992,-2462.61544,0.0004716,36]
[343166595,1732393842002,-165.96,0.00047177,2]
[343166596,1732393842011,-4407.0,0.00047361,117]
[343166597,1732393842020,-1000.0,0.00047485,2]
[343166598,1732393842030,-1000.0,0.00047599,2]
[343166599,1732393842039,-416419.126282,0.000476,30]
[343166600,1732393842048,-422.84605013,0.00047652,2]
[343166601,1732393842060,-2000.0,0.000478,7]
[343166602,1732393842070,-2000.0,0.000478,7]
[343166603,1732393842080,-763.63,0.00047856,120]
[343166604,1732393842090,-4834.41809996,0.000479,120]
[343166605,1732393842099,-379.87,0.00047963,120]
[343166606,1732393842109,-178.78,0.00048005,120]
[343166607,1732393842118,-2500.0,0.00048178,2]
[343166608,1732393842128,-2000.0,0.00048278,7]
[343166609,1732393842137,-46053.56,0.00048308,7]
[343166610,1732393842146,-45826.83,0.00048308,7]
[343166611,1732393842155,-16465.5,0.00048308,7]
[343166612,1732393842165,-1000.0,0.00048404,2]
[343166613,1732393842174,-2462.61545,0.0004841,42]
[343166614,1732393842184,-150.17,0.00048472,2]
[343166615,1732393842194,-164.78325843,0.00048507,28]
[343166616,1732393842203,-5450.52875576,0.00048509,15]
[343166617,1732393842213,-1098.4062,0.00048608,2]
[343166618,1732393842222,-500.0,0.00048609,2]
[343166619,1732393842232,-1209.0703,0.00048609,2]
[343166620,1732393842241,-577.0219,0.00048609,2]
[343166621,1732393842251,-73714.3338,0.00048609,2]
[343166622,1732393842260,-17922.3428,0.00048609,2]
[343166623,1732393842270,-1000.0,0.00048609,2]
[343166624,1732393842279,-2000.0,0.00048761,7]
[343166625,1732393842289,-635.25229337,0.000488,120]
[343166626,1732393842299,-436.425,0.0004897,120]
[343166627,1732393842313,-7259.62744091,0.00049,7]
[343166628,1732393842327,-2413.35,0.00049,5]
[343166629,1732393842337,-1286.26,0.00049106,7]
[343166630,1732393842346,-1360.03,0.00049106,7]
[343166631,1732393842355,-5761.70087578,0.000492,5]
[343166632,1732393842365,-798.63,0.00049227,2]
[343166633,1732393842374,-2000.0,0.00049248,7]
[343166634,1732393842383,-176.07,0.00049265,2]
[343166635,1732393842393,-5450.52875576,0.00049329,15]
[343166636,1732393842403,-21620.14744315,0.000496,120]
[343166637,1732393842414,-2000.0,0.00049741,7]
[343166639,1732393842423,-53854.00979124,0.000498,30]
[343166640,1732393842433,-886.49,0.00049927,7]
[343166642,1732393842442,-886.49,0.00049927,7]
[343166644,1732393842453,-164.78325842,0.00049981,28]
[343166646,1732393842463,-2608.00730107,0.0005,5]
[343166648,1732393842473,-3420.14336204,0.0005,120]
[343166650,1732393842485,-3018.00800159,0.0005,30]
[343166652,1732393842494,-2430.43419451,0.00050148,15]
[343166653,1732393842503,-5450.52875576,0.00050149,15]
[343166654,1732393842513,-188.86,0.00050334,2]
[343166655,1732393842523,-379.87,0.00050547,120]
[343166656,1732393842532,-15796.55,0.000506,7]
[343166657,1732393842542,-1280.79,0.000506,7]
[343166658,1732393842552,-15589.1415026,0.000509,30]
[343166659,1732393842569,-142942.991483,0.000509,60]
[343166660,1732393842579,-1700.0,0.000509,18]
[343166661,1732393842588,-2430.43419451,0.00050969,15]
[343166662,1732393842598,-5450.52875576,0.00050969,15]
[343166663,1732393842608,-512.26117699,0.00051104,120]
[343166664,1732393842618,-924.82401556,0.00051104,120]
[343166665,1732393842628,-150.0,0.00051104,30]
[343166666,1732393842638,-10000.0,0.00051104,120]
[343166667,1732393842648,-150.0,0.00051104,2]
[343166668,1732393842658,-158.369079,0.00051104,40]
[343166669,1732393842668,-10000.0,0.00051104,120]
[343166670,1732393842679,-1244.93222468,0.00051104,2]
[343166671,1732393842689,-3103.72738554,0.00051104,30]
[343166672,1732393842699,-2057.29349884,0.00051104,30]
[343166673,1732393842708,-552.21989305,0.00051104,5]
[343166674,1732393842718,-1461.61051518,0.00051104,10]
[343166675,1732393842728,-498.4195425,0.00051104,30]
[343166676,1732393842737,-542.82477856,0.00051104,30]
[343166677,1732393842746,-372.50652673,0.00051104,30]
[343166678,1732393842756,-2203.21187,0.00051104,120]
[343166679,1732393842765,-387.60537599,0.00051104,16]
[343166680,1732393842774,-1559.55115538,0.00051104,30]
[343166681,1732393842783,-854.50231913,0.00051104,30]
[343166682,1732393842792,-1000.0,0.00051104,30]
[343166683,1732393842801,-2706.31122016,0.00051104,30]
[343166685,1732393842813,-2318.3178636,0.00051104,30]
[343166686,1732393842823,-10446.61604956,0.00051104,3]
[343166688,1732393842832,-1826.62158738,0.00051104,120]
[343166690,1732393842841,-1961.41565668,0.00051104,30]
[343166691,1732393842851,-1874.62170301,0.00051104,30]
[343166693,1732393842861,-721.07515289,0.00051104,30]
[343166694,1732393842871,-1951.34047512,0.00051104,5]
[343166696,1732393842881,-690.77552729,0.00051104,10]
[343166698,1732393842891,-291.39104611,0.00051104,30]
[343166700,1732393842901,-3391.45319428,0.00051104,30]
[343166702,1732393842910,-274.3404707,0.00051104,7]
[343166703,1732393842919,-607.88196886,0.00051104,6]
[343166704,1732393842928,-1002.28457885,0.00051104,15]
[343166705,1732393842937,-935.0372172,0.00051104,20]
[343166707,1732393842946,-258.66732952,0.00051104,30]
[343166708,1732393842956,-1312.04826574,0.00051104,120]
[343166709,1732393842966,-2500.0,0.00051104,30]
[343166710,1732393842975,-846.00764474,0.00051104,120]